[Event "Vienna Chess Open 2019"]
[Site "Vienna"]
[Date "2019.08.21"]
[Round "6.12"]
[White "Ghazarian, Kirk"]
[Black "Csiki, Endre"]
[Result "1/2-1/2"]
[ECO "C71"]
[WhiteElo "2253"]
[BlackElo "2351"]
[Annotator "NA"]
[PlyCount "48"]
[EventDate "2019.08.17"]
[EventType "swiss"]
[EventCountry "AUT"]
[SourceTitle "playchess.com"]
[Source "ChessBase"]
[SourceQuality "1"]
[TimeControl "40/5400+30:1800+30"]

1. e4 {[%emt 0:01:16]} e5 {[%emt 0:00:01]} 2. Nf3 {[%emt 0:00:33]} Nc6 {[%emt 0:00:04]} 3. Bb5 {[%emt 0:00:45]} a6 {[%emt 0:00:25]} 4. Ba4 {[%emt 0:00:35]} d6 {[%emt 0:00:05]} 5. Nc3 {[%emt 0:04:28]} g6 {[%emt 0:07:06]} 6. d4 {[%emt 0:07:38]} b5 {[%emt 0:00:48]} 7. Bb3 {[%emt 0:04:10]} Bg7 {[%emt 0:09:30]} 8. dxe5 {[%emt 0:09:51]} dxe5 {[%emt 0:02:34]} 9. Qxd8+ {[%emt 0:04:31]} Nxd8 {[%emt 0:00:04]} 10. a4 {[%emt 0:00:19]} Rb8 {[%emt 0:02:02]} 11. axb5 {[%emt 0:00:31]} axb5 {[%emt 0:00:05]} 12. Be3 {[%emt 0:01:13]} Ne7 {[%emt 0:02:23]} 13. h4 {[%emt 0:10:58]} Be6 {[%emt 0:02:26]} 14. Nd2 {[%emt 0:02:21]} Bxb3 {[%emt 0:08:03]} 15. Nxb3 {[%emt 0:02:06]} Ne6 {[%emt 0:06:42]} 16. Nc5 {[%emt 0:04:19]} Nc6 {[%emt 0:05:38]} 17. Nxe6 {[%emt 0:19:35]} fxe6 {[%emt 0:00:06]} 18. Ne2 {[%emt 0:05:44]} Nd4 {[%emt 0:03:07]} 19. Bxd4 {[%emt 0:00:44]} exd4 {[%emt 0:00:07]} 20. Nf4 {[%emt 0:00:44]} Kd7 {[%emt 0:02:47]} 21. Nd3 {[%emt 0:00:23]} Ra8 {[%emt 0:02:26]} 22. Ke2 {[%emt 0:00:24]} Kd6 {[%emt 0:00:08]} 23. Rxa8 {[%emt 0:05:11]} Rxa8 {[%emt 0:00:07]} 24. b4 {[%emt 0:00:37]} Ra2 {[%emt 0:09:11]} 1/2-1/2

[Event "Vienna Chess Open 2019"]
[Site "Vienna"]
[Date "2019.08.22"]
[Round "7.1"]
[White "Cvitan, Ognjen"]
[Black "Yurtseven, Melih"]
[Result "1/2-1/2"]
[ECO "E10"]
[WhiteElo "2493"]
[BlackElo "2396"]
[Annotator "ChessBase"]
[PlyCount "142"]
[EventDate "2019.08.17"]
[EventType "swiss"]
[EventCountry "AUT"]
[SourceTitle "playchess.com"]
[Source "ChessBase"]
[SourceQuality "1"]
[TimeControl "40/5400+30:1800+30"]

1. d4 {[%emt 0:00:00]} Nf6 {[%emt 0:02:15]} 2. c4 {[%emt 0:02:13]} e6 {[%emt 0:00:08]} 3. Nf3 {[%emt 0:01:06]} a6 {[%emt 0:00:40]} 4. Nc3 {[%emt 0:06:10]} d5 {[%emt 0:00:08]} 5. cxd5 {[%emt 0:02:42]} exd5 {[%emt 0:00:06]} 6. Bg5 {[%emt 0:02:16]} Be6 {[%emt 0:00:07]} 7. e3 {[%emt 0:01:18]} Nbd7 {[%emt 0:01:01]} 8. Bd3 {[%emt 0:01:43]} Bd6 {[%emt 0:00:08]} 9. O-O {[%emt 0:00:47]} O-O {[%emt 0:00:09]} 10. h3 {[%emt 0:03:53]} Qb8 {[%emt 0:03:32]} 11. Bf4 {[%emt 0:01:27]} c6 {[%emt 0:00:07]} 12. Qd2 {[%emt 0:01:32]} h6 {[%emt 0:04:21]} 13. Rfc1 {[%emt 0:02:17]} Kh8 {[%emt 0:02:37]} 14. b4 {[%emt 0:03:04]} Nb6 {[%emt 0:27:05]} 15. Ne5 {[%emt 0:24:46]} Nfd7 {[%emt 0:05:11]} 16. Nxd7 {[%emt 0:00:37]} Bxd7 {[%emt 0:01:20]} 17. Ne2 {[%emt 0:01:42]} Na4 {[%emt 0:06:31]} 18. Bc2 {[%emt 0:07:04]} Nb6 {[%emt 0:00:08]} 19. Bd3 {[%emt 0:02:13]} Nc8 {[%emt 0:01:27]} 20. a4 {[%emt 0:00:23]} g5 {[%emt 0:02:35]} 21. Bxd6 {[%emt 0:01:34]} Nxd6 {[%emt 0:00:09]} 22. Nc3 {[%emt 0:01:06]} f5 {[%emt 0:12:16]} 23. b5 {[%emt 0:02:32]} a5 {[%emt 0:00:02]} 24. Rab1 {[%emt 0:00:46]} Qd8 {[%emt 0:00:11]} 25. bxc6 {[%emt 0:03:04]} bxc6 {[%emt 0:00:21]} 26. Ne2 {[%emt 0:06:39]} Qf6 {[%emt 0:01:12]} 27. Rb6 {[%emt 0:00:43]} f4 {[%emt 0:08:33]} 28. f3 {[%emt 0:00:23]} Rae8 {[%emt 0:01:34]} 29. exf4 {[%emt 0:00:14]} gxf4 {[%emt 0:00:04]} 30. Rcxc6 {[%emt 0:00:13]} Bxc6 {[%emt 0:13:48]} 31. Rxc6 {[%emt 0:00:04]} Re3 {[%emt 0:00:32]} 32. Bb5 {[%emt 0:00:56]} Qe7 {[%emt 0:01:05]} 33. Nxf4 {[%emt 0:02:03]} Rxf4 {[%emt 0:00:43]} 34. Rxd6 {[%emt 0:00:03]} Re1+ {[%emt 0:01:10]} 35. Kf2 {[%emt 0:00:12]} Qxd6 {[%emt 0:01:09]} 36. Qxe1 {[%emt 0:00:21]} Qf6 {[%emt 0:02:12]} 37. Qe8+ {[%emt 0:03:53]} Kg7 {[%emt 0:00:02]} 38. Qd7+ {[%emt 0:00:06]} Qf7 {[%emt 0:00:52]} 39. Ke3 {[%emt 0:01:13]} Rf6 {[%emt 0:02:57]} 40. Qxf7+ {[%emt 0:01:59]} Kxf7 {[%emt 0:00:16]} 41. g4 {[%emt 0:32:14]} Re6+ {[%emt 0:16:24]} 42. Kf4 {[%emt 0:00:00]} Rf6+ {[%emt 0:01:45]} 43. Kg3 {[%emt 0:00:00]} Re6 {[%emt 0:00:24]} 44. h4 {[%emt 0:00:00]} Re1 {[%emt 0:00:50]} 45. Kf4 {[%emt 0:00:00]} Ke6 {[%emt 0:01:13]} 46. Bd3 {[%emt 0:00:00]} Rd1 {[%emt 0:05:23]} 47. Ke3 {[%emt 0:00:00]} Rh1 {[%emt 0:00:30]} 48. h5 {[%emt 0:00:00]} Kf6 {[%emt 0:01:05]} 49. Bb5 {[%emt 0:00:00]} Re1+ {[%emt 0:01:24]} 50. Kf2 {[%emt 0:00:00]} Rc1 {[%emt 0:01:22]} 51. f4 {[%emt 0:00:00]} Rd1 {[%emt 0:03:55]} 52. Ke3 {[%emt 0:00:00]} Re1+ {[%emt 0:00:51]} 53. Be2 {[%emt 0:00:00]} Ra1 {[%emt 0:00:39]} 54. Bb5 {[%emt 0:00:00]} Ra3+ {[%emt 0:00:25]} 55. Kf2 {[%emt 0:00:00]} Rb3 {[%emt 0:00:54]} 56. Ke2 {[%emt 0:00:00]} Rg3 {[%emt 0:01:00]} 57. Bd7 {[%emt 0:00:00]} Rg1 {[%emt 0:00:54]} 58. Bf5 {[%emt 0:00:00]} Rc1 {[%emt 0:00:33]} 59. Bd3 {[%emt 0:00:00]} Rg1 {[%emt 0:00:20]} 60. Bf5 {[%emt 0:00:00]} Rg2+ {[%emt 0:00:19]} 61. Ke3 {[%emt 0:00:00]} Rg3+ {[%emt 0:00:06]} 62. Ke2 {[%emt 0:00:00]} Rb3 {[%emt 0:00:14]} 63. Bd7 {[%emt 0:00:00]} Rb7 {[%emt 0:01:17]} 64. Bc6 {[%emt 0:00:00]} Rb6 {[%emt 0:00:02]} 65. Bxd5 {[%emt 0:00:00]} Rd6 {[%emt 0:00:23]} 66. Bb3 {[%emt 0:00:00]} Rxd4 {[%emt 0:00:03]} 67. Ke3 {[%emt 0:00:00]} Rb4 {[%emt 0:00:11]} 68. Bc2 {[%emt 0:00:00]} Rc4 {[%emt 0:00:33]} 69. Bd1 {[%emt 0:00:00]} Rc1 {[%emt 0:00:35]} 70. Be2 {[%emt 0:00:00]} Rb1 {[%emt 0:01:10]} 71. Bb5 {[%emt 0:00:00]} Rb4 {[%emt 0:00:55] Ke4 Ke5+} 1/2-1/2

[Event "Vienna Chess Open 2019"]
[Site "Vienna"]
[Date "2019.08.22"]
[Round "7.1"]
[White "Gavrilescu, David"]
[Black "Kummer, Helmut"]
[Result "0-1"]
[ECO "C42"]
[WhiteElo "2464"]
[BlackElo "2464"]
[Annotator "ChessBase"]
[PlyCount "170"]
[EventDate "2019.08.17"]
[EventType "swiss"]
[EventCountry "AUT"]
[SourceTitle "playchess.com"]
[Source "ChessBase"]
[SourceQuality "1"]
[TimeControl "40/5400+30:1800+30"]

1. e4 {[%emt 0:00:00]} e5 {[%emt 0:00:00]} 2. Nf3 {[%emt 0:00:00]} Nf6 {[%emt 0:00:00]} 3. Nxe5 {[%emt 0:00:34]} d6 {[%emt 0:00:00]} 4. Nd3 {[%emt 0:00:42]} Nxe4 {[%emt 0:00:50]} 5. Qe2 {[%emt 0:00:40]} Qe7 {[%emt 0:00:16]} 6. Nc3 {[%emt 0:00:27]} Nf6 {[%emt 0:00:31]} 7. Nf4 {[%emt 0:00:35]} c6 {[%emt 0:00:21]} 8. f3 {[%emt 0:01:10]} d5 {[%emt 0:03:17]} 9. d4 {[%emt 0:00:17]} Bf5 {[%emt 0:02:10]} 10. Nd3 {[%emt 0:10:06]} Na6 {[%emt 0:02:50]} 11. g4 {[%emt 0:06:28]} Bxd3 {[%emt 0:00:36]} 12. Qxe7+ {[%emt 0:05:54]} Bxe7 {[%emt 0:00:07]} 13. cxd3 {[%emt 0:02:10]} Nc7 {[%emt 0:01:01]} 14. h4 {[%emt 0:03:31]} Ne6 {[%emt 0:00:26]} 15. Ne2 {[%emt 0:00:40]} Bb4+ {[%emt 0:03:02]} 16. Kf2 {[%emt 0:02:37]} h6 {[%emt 0:01:32]} 17. Be3 {[%emt 0:09:30]} Bd6 {[%emt 0:01:09]} 18. Bg2 {[%emt 0:15:45]} Ke7 {[%emt 0:14:20]} 19. h5 {[%emt 0:03:15]} Rae8 {[%emt 0:01:34]} 20. Rh4 {[%emt 0:02:40]} Kd8 {[%emt 0:01:49]} 21. f4 {[%emt 0:01:39]} Re7 {[%emt 0:01:45]} 22. Bf3 {[%emt 0:01:48]} Rhe8 {[%emt 0:04:02]} 23. Bd2 {[%emt 0:04:53]} Nd7 {[%emt 0:02:02]} 24. g5 {[%emt 0:04:38]} f5 {[%emt 0:09:41]} 25. Rg1 {[%emt 0:04:48]} Rf7 {[%emt 0:01:18]} 26. Rh3 {[%emt 0:04:03]} Rh8 {[%emt 0:04:05]} 27. Rhh1 {[%emt 0:01:29]} Nb6 {[%emt 0:00:47]} 28. Rg2 {[%emt 0:01:05]} Na8 {[%emt 0:00:06]} 29. Rhg1 {[%emt 0:00:56]} Nac7 {[%emt 0:00:14]} 30. a4 {[%emt 0:01:14]} Re7 {[%emt 0:01:03]} 31. gxh6 {[%emt 0:01:31]} Rxh6 {[%emt 0:00:08]} 32. Rg6 {[%emt 0:00:19]} Rh7 {[%emt 0:00:31]} 33. Rh1 {[%emt 0:02:05]} Rf7 {[%emt 0:02:04]} 34. h6 {[%emt 0:00:58]} gxh6 {[%emt 0:01:21]} 35. Rhxh6 {[%emt 0:00:21]} Rxh6 {[%emt 0:01:27]} 36. Rxh6 {[%emt 0:00:01]} Ke7 {[%emt 0:01:17]} 37. Bg2 {[%emt 0:00:39]} Ne8 {[%emt 0:06:22]} 38. Bh3 {[%emt 0:00:54]} N8g7 {[%emt 0:04:25]} 39. Kf3 {[%emt 0:01:31]} Rf6 {[%emt 0:00:47]} 40. Rh7 {[%emt 0:01:51]} Kf7 {[%emt 0:06:44]} 41. Rh8 {[%emt 0:33:46]} Kg6 {[%emt 0:30:27]} 42. Bf1 {[%emt 0:00:00]} Rf8 {[%emt 0:00:00]} 43. Rh1 {[%emt 0:00:00]} a6 {[%emt 0:00:00]} 44. Bg2 {[%emt 0:00:00]} Nh5 {[%emt 0:00:00]} 45. Bh3 {[%emt 0:00:00]} Rf7 {[%emt 0:00:00]} 46. Be3 {[%emt 0:00:00]} Rh7 {[%emt 0:00:00]} 47. Rh2 {[%emt 0:00:00]} Neg7 {[%emt 0:00:00]} 48. Rh1 {[%emt 0:00:00]} Rh6 {[%emt 0:00:00]} 49. Bf1 {[%emt 0:00:00]} Kh7 {[%emt 0:00:00]} 50. Rh2 {[%emt 0:00:44]} Nf6 {[%emt 0:00:00]} 51. Rxh6+ {[%emt 0:00:23]} Kxh6 {[%emt 0:00:00]} 52. Bh3 {[%emt 0:00:05]} Kg6 {[%emt 0:00:00]} 53. Ng3 {[%emt 0:00:53]} Nfh5 {[%emt 0:00:00]} 54. Ne2 {[%emt 0:00:18]} Bb4 {[%emt 0:00:00]} 55. Bf1 {[%emt 0:02:58]} Ne6 {[%emt 0:00:00]} 56. Nc1 {[%emt 0:01:29]} Nhxf4 {[%emt 0:00:00]} 57. Bxf4 {[%emt 0:01:35]} Nxf4 {[%emt 0:00:00]} 58. Kxf4 {[%emt 0:00:23]} Bd2+ {[%emt 0:00:00]} 59. Kf3 {[%emt 0:00:37]} Bxc1 {[%emt 0:00:00]} 60. b3 {[%emt 0:00:02]} Bd2 {[%emt 0:02:51]} 61. Bh3 {[%emt 0:00:21]} Kg5 {[%emt 0:00:05]} 62. Ke2 {[%emt 0:01:49]} Bc3 {[%emt 0:02:20]} 63. Ke3 {[%emt 0:00:07]} Bb2 {[%emt 0:00:50]} 64. Bf1 {[%emt 0:01:05]} Kg4 {[%emt 0:00:19]} 65. Be2+ {[%emt 0:00:03]} Kg3 {[%emt 0:00:06]} 66. Bh5 {[%emt 0:00:07]} f4+ {[%emt 0:03:11]} 67. Ke2 {[%emt 0:00:08]} Bxd4 {[%emt 0:00:10]} 68. Kf1 {[%emt 0:00:17]} f3 {[%emt 0:05:38]} 69. Be8 {[%emt 0:00:41]} Kf4 {[%emt 0:00:09]} 70. Bd7 {[%emt 0:00:14]} Ke3 {[%emt 0:00:41]} 71. Bc8 {[%emt 0:00:04]} Kxd3 {[%emt 0:00:15]} 72. Bxb7 {[%emt 0:00:05]} a5 {[%emt 0:00:07]} 73. Bxc6 {[%emt 0:00:18]} Ke4 {[%emt 0:00:05]} 74. Ke1 {[%emt 0:03:39]} Be3 {[%emt 0:00:04]} 75. Kf1 {[%emt 0:00:16]} Kd4 {[%emt 0:00:05]} 76. Bd7 {[%emt 0:00:59]} Kc3 {[%emt 0:00:46]} 77. Bc6 {[%emt 0:00:08]} Kd4 {[%emt 0:00:15]} 78. Bd7 {[%emt 0:00:05]} Kc5 {[%emt 0:01:34]} 79. Bg4 {[%emt 0:01:31]} f2 {[%emt 0:00:12]} 80. Be6 {[%emt 0:00:35]} d4 {[%emt 0:00:24]} 81. Bc4 {[%emt 0:00:05]} Kb4 {[%emt 0:00:05]} 82. Ke2 {[%emt 0:00:21]} Kc3 {[%emt 0:00:11]} 83. Ba6 {[%emt 0:00:30]} d3+ {[%emt 0:00:34]} 84. Bxd3 {[%emt 0:00:24]} f1=Q+ {[%emt 0:00:09]} 85. Kxf1 {[%emt 0:00:06]} Kxd3 {[%emt 0:00:03]} 0-1

[Event "Vienna Chess Open 2019"]
[Site "Vienna"]
[Date "2019.08.22"]
[Round "7.2"]
[White "Peralta, Fernando"]
[Black "Handler, Lukas"]
[Result "1-0"]
[ECO "D38"]
[WhiteElo "2572"]
[BlackElo "2411"]
[Annotator "ChessBase"]
[PlyCount "69"]
[EventDate "2019.08.17"]
[EventType "swiss"]
[EventCountry "AUT"]
[SourceTitle "playchess.com"]
[Source "ChessBase"]
[SourceQuality "1"]
[TimeControl "40/5400+30:1800+30"]

1. d4 {[%emt 0:00:00]} d5 {[%emt 0:00:00]} 2. c4 {[%emt 0:00:00]} e6 {[%emt 0:00:00]} 3. Nf3 {[%emt 0:01:39]} Nf6 {[%emt 0:00:00]} 4. Nc3 {[%emt 0:00:19]} Bb4 {[%emt 0:00:00]} 5. Qa4+ {[%emt 0:00:43]} Nc6 {[%emt 0:00:10]} 6. e3 {[%emt 0:00:05]} O-O {[%emt 0:03:10]} 7. Qc2 {[%emt 0:00:15]} dxc4 {[%emt 0:01:30]} 8. Bxc4 {[%emt 0:00:18]} a6 {[%emt 0:00:48]} 9. O-O {[%emt 0:01:05]} Bd6 {[%emt 0:00:11]} 10. a3 {[%emt 0:01:34]} e5 {[%emt 0:00:31]} 11. h3 {[%emt 0:00:31]} h6 {[%emt 0:12:54]} 12. Bd2 {[%emt 0:01:06]} Re8 {[%emt 0:18:00]} 13. dxe5 {[%emt 0:01:31]} Nxe5 {[%emt 0:00:06]} 14. Nxe5 {[%emt 0:00:07]} Bxe5 {[%emt 0:00:25]} 15. f4 {[%emt 0:01:51]} Bxc3 {[%emt 0:06:12]} 16. Bxc3 {[%emt 0:00:16]} Qe7 {[%emt 0:02:24]} 17. Rae1 {[%emt 0:13:46]} Be6 {[%emt 0:25:06]} 18. Bd3 {[%emt 0:03:46]} Rad8 {[%emt 0:03:42]} 19. b4 {[%emt 0:25:46]} Bb3 {[%emt 0:03:00]} 20. Qe2 {[%emt 0:06:44]} Qe6 {[%emt 0:09:49]} 21. Rf3 {[%emt 0:04:45]} Nd5 {[%emt 0:04:30]} 22. Ba1 {[%emt 0:02:48]} f6 {[%emt 0:03:08]} 23. Bg6 {[%emt 0:05:51]} Rf8 {[%emt 0:01:02]} 24. Bb1 {[%emt 0:02:40]} Ne7 {[%emt 0:00:48]} 25. e4 {[%emt 0:03:02]} Bc4 {[%emt 0:00:40]} 26. Qf2 {[%emt 0:06:18]} Qb6 {[%emt 0:01:03]} 27. Rfe3 {[%emt 0:00:16]} Be6 {[%emt 0:01:06]} 28. Kh1 {[%emt 0:01:02]} Rd7 {[%emt 0:00:56]} 29. Qg3 {[%emt 0:02:15]} Bf7 {[%emt 0:01:39]} 30. e5 {[%emt 0:01:25]} Nd5 {[%emt 0:00:46]} 31. e6 {[%emt 0:10:02]} Nxe3 {[%emt 0:00:04]} 32. exd7 {[%emt 0:00:11]} Nd5 {[%emt 0:00:08]} 33. Qd3 {[%emt 0:00:55]} g6 {[%emt 0:00:07]} 34. Re8 {[%emt 0:00:31]} Qc6 {[%emt 0:02:15]} 35. Rxf8+ {[%emt 0:00:34]} 1-0

[Event "Vienna Chess Open 2019"]
[Site "Vienna"]
[Date "2019.08.22"]
[Round "7.2"]
[White "Nielsen, Viktor Haarmark"]
[Black "Buckels, Valentin"]
[Result "1/2-1/2"]
[ECO "A62"]
[WhiteElo "2453"]
[BlackElo "2453"]
[Annotator "ChessBase"]
[PlyCount "162"]
[EventDate "2019.08.17"]
[EventType "swiss"]
[EventCountry "AUT"]
[SourceTitle "playchess.com"]
[Source "ChessBase"]
[SourceQuality "1"]
[TimeControl "40/5400+30:1800+30"]

1. d4 {[%emt 0:03:29]} Nf6 {[%emt 0:00:00]} 2. c4 {[%emt 0:00:13]} e6 {[%emt 0:00:00]} 3. g3 {[%emt 0:00:05]} c5 {[%emt 0:00:00]} 4. d5 {[%emt 0:00:09]} exd5 {[%emt 0:00:00]} 5. cxd5 {[%emt 0:00:05]} d6 {[%emt 0:00:00]} 6. Nc3 {[%emt 0:00:10]} g6 {[%emt 0:00:02]} 7. Bg2 {[%emt 0:00:08]} Bg7 {[%emt 0:00:05]} 8. Nf3 {[%emt 0:00:15]} O-O {[%emt 0:00:05]} 9. O-O {[%emt 0:00:06]} Re8 {[%emt 0:00:17]} 10. Bf4 {[%emt 0:01:11]} Ne4 {[%emt 0:01:04]} 11. Nxe4 {[%emt 0:01:27]} Rxe4 {[%emt 0:00:03]} 12. Nd2 {[%emt 0:00:52]} Rxf4 {[%emt 0:00:45]} 13. gxf4 {[%emt 0:00:07]} Bxb2 {[%emt 0:00:05]} 14. Rb1 {[%emt 0:00:12]} Bg7 {[%emt 0:00:08]} 15. Nc4 {[%emt 0:05:14]} Na6 {[%emt 0:06:46]} 16. e4 Nb4 {[%emt 0:14:06]} 17. a3 {[%emt 0:28:07]} Na2 {[%emt 0:05:13]} 18. Qd2 {[%emt 0:01:50]} Nc3 {[%emt 0:00:06]} 19. Rbc1 {[%emt 0:00:37]} Nb5 {[%emt 0:00:59]} 20. e5 {[%emt 0:05:39]} dxe5 {[%emt 0:01:38]} 21. fxe5 {[%emt 0:00:08]} Nd4 {[%emt 0:01:48]} 22. Qe3 {[%emt 0:02:45]} b6 {[%emt 0:07:31]} 23. Rfd1 {[%emt 0:04:23]} Nf5 {[%emt 0:09:23]} 24. Qe4 {[%emt 0:02:57]} Bb7 {[%emt 0:02:06]} 25. e6 {[%emt 0:02:34]} Qf6 {[%emt 0:08:24]} 26. exf7+ {[%emt 0:05:55]} Qxf7 {[%emt 0:00:54]} 27. Ne5 {[%emt 0:01:10]} Qf6 {[%emt 0:05:41]} 28. Nc6 {[%emt 0:04:49]} Kf8 {[%emt 0:11:16]} 29. Re1 {[%emt 0:11:04]} Qd6 {[%emt 0:06:00]} 30. Rcd1 {[%emt 0:04:26]} Bc3 {[%emt 0:03:27]} 31. Rf1 {[%emt 0:12:06]} Ba6 {[%emt 0:03:17]} 32. Qc2 {[%emt 0:01:40]} Nd4 {[%emt 0:03:39]} 33. Nxd4 {[%emt 0:01:30]} cxd4 {[%emt 0:00:19]} 34. f4 {[%emt 0:01:00]} Bxf1 {[%emt 0:03:37]} 35. Rxf1 {[%emt 0:00:01]} Kg7 {[%emt 0:00:35]} 36. f5 {[%emt 0:01:01]} Rf8 {[%emt 0:00:34]} 37. a4 {[%emt 0:00:07]} Qe5 {[%emt 0:03:20]} 38. Qe4 {[%emt 0:00:21]} Qxe4 {[%emt 0:02:59]} 39. Bxe4 {[%emt 0:00:02]} Re8 {[%emt 0:00:02]} 40. Bd3 {[%emt 0:01:24]} Bb4 {[%emt 0:01:54]} 41. fxg6 {[%emt 0:03:04]} hxg6 {[%emt 0:02:00]} 42. Kg2 {[%emt 0:05:05]} Rd8 {[%emt 0:02:53]} 43. Be4 {[%emt 0:01:25]} Rc8 {[%emt 0:00:10]} 44. Rf2 {[%emt 0:00:53]} Bd6 {[%emt 0:05:04]} 45. Rc2 {[%emt 0:01:48]} Re8 {[%emt 0:00:18]} 46. Re2 {[%emt 0:00:22]} Bf4 {[%emt 0:01:04]} 47. Bd3 {[%emt 0:00:40]} Be5 {[%emt 0:05:21]} 48. Rc2 {[%emt 0:00:46]} Rd8 {[%emt 0:01:33]} 49. Be4 {[%emt 0:00:17]} g5 {[%emt 0:00:21]} 50. h3 {[%emt 0:01:38]} Kf6 {[%emt 0:01:00]} 51. Rc4 {[%emt 0:09:51]} g4 {[%emt 0:04:28]} 52. hxg4 {[%emt 0:01:52]} Kg5 {[%emt 0:00:01]} 53. Kf3 {[%emt 0:00:44]} Rh8 {[%emt 0:00:11]} 54. Bf5 {[%emt 0:00:42]} Rh3+ {[%emt 0:00:11]} 55. Ke2 {[%emt 0:00:35]} Rh2+ {[%emt 0:07:30]} 56. Kd3 {[%emt 0:00:22]} Rh3+ {[%emt 0:00:55]} 57. Ke2 {[%emt 0:00:06]} Ra3 {[%emt 0:02:49]} 58. d6 {[%emt 0:02:25]} Bxd6 {[%emt 0:00:07]} 59. Rxd4 {[%emt 0:00:13]} Be5 {[%emt 0:00:33]} 60. Rc4 {[%emt 0:00:28]} Bf4 {[%emt 0:00:18]} 61. Re4 {[%emt 0:00:38]} Bd6 {[%emt 0:00:57]} 62. Rc4 {[%emt 0:00:27]} a6 {[%emt 0:00:12]} 63. Bc2 {[%emt 0:01:58]} Bf4 {[%emt 0:01:02]} 64. Bf5 {[%emt 0:00:05]} Bd6 {[%emt 0:01:14]} 65. Rd4 {[%emt 0:00:37]} Bc5 {[%emt 0:00:16]} 66. Rc4 {[%emt 0:00:06]} Ra2+ {[%emt 0:01:11]} 67. Kd3 {[%emt 0:00:16]} Bd6 {[%emt 0:00:22]} 68. Rd4 {[%emt 0:01:51]} Be5 {[%emt 0:00:34]} 69. Rb4 {[%emt 0:00:24]} Ra3+ {[%emt 0:00:38]} 70. Ke2 {[%emt 0:00:25]} Bc7 {[%emt 0:00:22]} 71. Rc4 {[%emt 0:00:13]} Bh2 {[%emt 0:00:26]} 72. Bc8 {[%emt 0:00:31]} a5 {[%emt 0:00:29]} 73. Bf5 {[%emt 0:00:17]} Bd6 {[%emt 0:00:11]} 74. Bd7 {[%emt 0:00:00]} Bb4 {[%emt 0:00:00]} 75. Rd4 {[%emt 0:00:01]} Ra2+ {[%emt 0:00:00]} 76. Kf3 {[%emt 0:00:14]} Rd2 {[%emt 0:00:00]} 77. Rxd2 {[%emt 0:00:19]} Bxd2 {[%emt 0:00:00]} 78. Ke2 {[%emt 0:00:08]} Bb4 {[%emt 0:00:00]} 79. Kf3 {[%emt 0:00:04]} Bd2 {[%emt 0:00:03]} 80. Ke2 {[%emt 0:00:05]} Bb4 {[%emt 0:00:03]} 81. Kf3 {[%emt 0:00:12]} Bd2 {[%emt 0:00:05]} 1/2-1/2

[Event "Vienna Chess Open 2019"]
[Site "Vienna"]
[Date "2019.08.22"]
[Round "7.2"]
[White "Kojima, Shinya"]
[Black "Diermair, Andreas"]
[Result "1/2-1/2"]
[ECO "A05"]
[WhiteElo "2390"]
[BlackElo "2473"]
[Annotator "ChessBase"]
[PlyCount "58"]
[EventDate "2019.08.17"]
[EventType "swiss"]
[EventCountry "AUT"]
[SourceTitle "playchess.com"]
[Source "ChessBase"]
[SourceQuality "1"]
[TimeControl "40/5400+30:1800+30"]

1. Nf3 {[%emt 0:00:00]} Nf6 {[%emt 0:00:00]} 2. c4 {[%emt 0:00:00]} b6 {[%emt 0:00:00]} 3. g3 {[%emt 0:00:03]} Bb7 {[%emt 0:00:00]} 4. Bg2 {[%emt 0:00:06]} g6 {[%emt 0:00:13]} 5. b3 {[%emt 0:00:30]} Bg7 {[%emt 0:00:11]} 6. Bb2 {[%emt 0:00:07]} O-O {[%emt 0:00:18]} 7. O-O {[%emt 0:00:22]} c5 {[%emt 0:00:14]} 8. Nc3 {[%emt 0:00:42]} Na6 {[%emt 0:00:18]} 9. Rc1 {[%emt 0:05:51]} e6 {[%emt 0:01:24]} 10. d4 {[%emt 0:03:14]} Rc8 {[%emt 0:05:03]} 11. Nb5 {[%emt 0:03:56]} Ra8 {[%emt 0:04:53]} 12. Nd6 {[%emt 0:04:14]} Bc6 {[%emt 0:06:21]} 13. d5 {[%emt 0:09:17]} exd5 {[%emt 0:00:06]} 14. cxd5 {[%emt 0:00:46]} Nxd5 {[%emt 0:00:09]} 15. Bxg7 {[%emt 0:00:29]} Kxg7 {[%emt 0:00:04]} 16. e4 {[%emt 0:05:21]} Nf6 {[%emt 0:04:30]} 17. Qe2 {[%emt 0:04:42]} Nc7 {[%emt 0:00:44]} 18. Rfd1 {[%emt 0:01:19]} Nfe8 {[%emt 0:06:16]} 19. Qb2+ {[%emt 0:10:32]} f6 {[%emt 0:04:54]} 20. e5 {[%emt 0:11:49]} Ne6 {[%emt 0:04:56]} 21. b4 {[%emt 0:09:08]} Rb8 {[%emt 0:03:59]} 22. Nxe8+ {[%emt 0:05:25]} Qxe8 {[%emt 0:07:15]} 23. exf6+ {[%emt 0:07:01]} Rxf6 {[%emt 0:01:56]} 24. Ne5 {[%emt 0:00:30]} Nd4 {[%emt 0:00:43]} 25. Rxd4 {[%emt 0:00:20]} cxd4 {[%emt 0:00:07]} 26. Qxd4 {[%emt 0:00:16]} Rc8 {[%emt 0:11:17]} 27. Ng4 {[%emt 0:01:24]} Qe6 {[%emt 0:01:43]} 28. Bxc6 {[%emt 0:14:24]} Rxc6 {[%emt 0:00:32]} 29. Rxc6 {[%emt 0:00:10]} dxc6 {[%emt 0:00:22]} 1/2-1/2

[Event "Vienna Chess Open 2019"]
[Site "Vienna"]
[Date "2019.08.22"]
[Round "7.3"]
[White "Dastan, Muhammed Batuhan"]
[Black "Markoja, Boris"]
[Result "1/2-1/2"]
[ECO "B38"]
[WhiteElo "2582"]
[BlackElo "2440"]
[Annotator "ChessBase"]
[PlyCount "66"]
[EventDate "2019.08.17"]
[EventType "swiss"]
[EventCountry "AUT"]
[SourceTitle "playchess.com"]
[Source "ChessBase"]
[SourceQuality "1"]
[TimeControl "40/5400+30:1800+30"]

1. e4 {[%emt 0:00:00]} c5 {[%emt 0:00:00]} 2. Nf3 {[%emt 0:00:00]} Nc6 {[%emt 0:00:00]} 3. d4 {[%emt 0:00:00]} cxd4 {[%emt 0:00:00]} 4. Nxd4 {[%emt 0:00:00]} g6 {[%emt 0:00:00]} 5. c4 {[%emt 0:00:00]} Bg7 {[%emt 0:00:15]} 6. Be3 {[%emt 0:00:08]} Qb6 {[%emt 0:00:16]} 7. Nb3 {[%emt 0:00:49]} Qd8 {[%emt 0:00:14]} 8. Nc3 {[%emt 0:01:09]} Bxc3+ {[%emt 0:01:05]} 9. bxc3 {[%emt 0:00:06]} Nf6 {[%emt 0:00:07]} 10. f3 {[%emt 0:33:41]} O-O {[%emt 0:00:13]} 11. Qd2 {[%emt 0:03:32]} d6 {[%emt 0:01:20]} 12. Rd1 {[%emt 0:03:29]} b6 {[%emt 0:01:22]} 13. Bh6 {[%emt 0:08:14]} Re8 {[%emt 0:00:37]} 14. h4 {[%emt 0:00:08]} Ne5 {[%emt 0:02:56]} 15. Nd4 {[%emt 0:05:31]} Qc7 {[%emt 0:10:56]} 16. Nb5 {[%emt 0:07:24]} Qc6 {[%emt 0:06:29]} 17. Bg5 {[%emt 0:01:50]} Be6 {[%emt 0:18:17]} 18. Nd4 {[%emt 0:01:24]} Qc8 {[%emt 0:01:29]} 19. Bxf6 {[%emt 0:15:37]} exf6 {[%emt 0:00:05]} 20. Qf4 {[%emt 0:00:17]} Bxc4 {[%emt 0:08:44]} 21. Qxf6 {[%emt 0:01:47]} h5 {[%emt 0:04:50]} 22. Kf2 {[%emt 0:04:13]} Bxf1 {[%emt 0:02:43]} 23. Kxf1 {[%emt 0:01:04]} Qc4+ {[%emt 0:05:19]} 24. Kg1 {[%emt 0:00:11]} Qxc3 {[%emt 0:00:51]} 25. Rh3 {[%emt 0:00:01]} Qc5 {[%emt 0:10:45]} 26. Kh2 {[%emt 0:01:26]} Nd7 {[%emt 0:00:30]} 27. Qf4 {[%emt 0:00:17]} Qe5 {[%emt 0:00:19]} 28. Ne2 {[%emt 0:00:27]} Rad8 {[%emt 0:02:15]} 29. Rxd6 {[%emt 0:00:39]} Qxf4+ {[%emt 0:00:11]} 30. Nxf4 {[%emt 0:00:04]} Ne5 {[%emt 0:00:08]} 31. Rxd8 {[%emt 0:00:40]} Rxd8 {[%emt 0:00:01]} 32. Nd5 {[%emt 0:00:06]} Kg7 {[%emt 0:02:33]} 33. Kg3 {[%emt 0:00:05]} Rc8 {[%emt 0:01:44]} 1/2-1/2